[Event "Titled Tuesday Blitz April 19 Late 2022"]
[White "Naroditsky, Daniel"]
[Black "Kavyev, Ruslan"]
[WhiteFideId "2026961"]
[BlackFideId "34110981"]
[WhiteElo "2608"]
[BlackElo "2182"]
[Result "1-0"]
[Round "03"]
[TimeControl "180+1"]
[Date "2022.04.19"]
[WhiteClock "0:01:44"]
[BlackClock "0:00:10"]

1. e4 {[%clk 0:03:00]}  c5 {[%clk 0:02:59]} 2. Nf3 {[%clk 0:02:58]}  d6 {[%clk 0:03:00]} 3. c3 {[%clk 0:02:58]}  Nf6 {[%clk 0:03:00]} 4. Bd3 {[%clk 0:02:58]}  Bg4 {[%clk 0:02:48]} 5. Bc2 {[%clk 0:02:57]}  Nc6 {[%clk 0:02:40]} 6. h3 {[%clk 0:02:56]}  Bh5 {[%clk 0:02:40]} 7. d3 {[%clk 0:02:56]}  e6 {[%clk 0:02:39]} 8. Nbd2 {[%clk 0:02:56]}  Be7 {[%clk 0:02:39]} 9. Nf1 {[%clk 0:02:57]}  O-O {[%clk 0:02:40]} 10. Ng3 {[%clk 0:02:58]}  Bg6 {[%clk 0:02:40]} 11. O-O {[%clk 0:02:56]}  d5 {[%clk 0:02:41]} 12. Qe2 {[%clk 0:02:53]}  b5 {[%clk 0:02:40]} 13. Nh4 {[%clk 0:02:50]}  d4 {[%clk 0:02:32]} 14. Nxg6 {[%clk 0:02:49]}  fxg6 {[%clk 0:02:30]} 15. a4 {[%clk 0:02:44]}  b4 {[%clk 0:02:18]} 16. Bb3 {[%clk 0:02:33]}  Qd7 {[%clk 0:02:11]} 17. cxb4 {[%clk 0:02:33]}  cxb4 {[%clk 0:02:09]} 18. a5 {[%clk 0:02:33]}  Kh8 {[%clk 0:02:07]} 19. Bd2 {[%clk 0:02:32]}  Qd8 {[%clk 0:01:36]} 20. a6 {[%clk 0:02:31]}  h6 {[%clk 0:01:33]} 21. Bxe6 {[%clk 0:02:31]}  Bd6 {[%clk 0:01:24]} 22. f4 {[%clk 0:02:30]}  Qe7 {[%clk 0:01:17]} 23. Bc4 {[%clk 0:02:30]}  Bc5 {[%clk 0:01:16]} 24. e5 {[%clk 0:02:29]}  Nd7 {[%clk 0:01:14]} 25. Ne4 {[%clk 0:02:29]}  Nb6 {[%clk 0:01:12]} 26. Bb3 {[%clk 0:02:27]}  Nd7 {[%clk 0:01:00]} 27. Rfc1 {[%clk 0:02:20]}  Rac8 {[%clk 0:00:50]} 28. Qg4 {[%clk 0:02:17]}  g5 {[%clk 0:00:48]} 29. Be6 {[%clk 0:02:11]}  Ndxe5 {[%clk 0:00:43]} 30. fxe5 {[%clk 0:02:09]}  Nxe5 {[%clk 0:00:44]} 31. Qg3 {[%clk 0:02:09]}  Qxe6 {[%clk 0:00:43]} 32. Nxc5 {[%clk 0:02:08]}  Qd5 {[%clk 0:00:38]} 33. Bxb4 {[%clk 0:02:07]}  Nf3+ {[%clk 0:00:28]} 34. gxf3 {[%clk 0:02:05]}  Rxf3 {[%clk 0:00:28]} 35. Qg2 {[%clk 0:02:06]}  Qf5 {[%clk 0:00:24]} 36. Ne4 {[%clk 0:02:02]}  Rxc1+ {[%clk 0:00:20]} 37. Rxc1 {[%clk 0:02:03]}  Rxd3 {[%clk 0:00:21]} 38. Qg4 {[%clk 0:02:00]}  Qe5 {[%clk 0:00:17]} 39. Bd6 {[%clk 0:01:58]}  Qd5 {[%clk 0:00:16]} 40. h4 {[%clk 0:01:44]}  Re3 {[%clk 0:00:13]} 41. Rc8+ {[%clk 0:01:44]}  Kh7 {[%clk 0:00:13]} 42. Nxg5+ {[%clk 0:01:44]}  hxg5 {[%clk 0:00:10]} 43. Qh5# {[%clk 0:01:44]} 1-0


[Site "https://www.chess.com"]

[Event "Titled Tuesday Blitz April 19 Late 2022"]
[White "Nozdrachev, Leonid"]
[Black "Ardila, Oscar Humberto"]
[WhiteFideId "24113433"]
[BlackFideId "4404742"]
[WhiteElo "2242"]
[BlackElo "1983"]
[Result "0-1"]
[Round "03"]
[TimeControl "180+1"]
[Date "2022.04.19"]
[WhiteClock "0:00:06"]
[BlackClock "0:00:16"]

1. e4 {[%clk 0:02:59]}  e5 {[%clk 0:02:59]} 2. Nf3 {[%clk 0:02:57]}  Nf6 {[%clk 0:03:00]} 3. Nxe5 {[%clk 0:02:50]}  d6 {[%clk 0:03:00]} 4. Nd3 {[%clk 0:02:47]}  Nxe4 {[%clk 0:03:00]} 5. Nc3 {[%clk 0:02:46]}  Nf6 {[%clk 0:02:59]} 6. Qe2+ {[%clk 0:02:43]}  Be7 {[%clk 0:03:00]} 7. g3 {[%clk 0:02:37]}  O-O {[%clk 0:03:00]} 8. Bg2 {[%clk 0:02:36]}  Re8 {[%clk 0:02:59]} 9. O-O {[%clk 0:02:35]}  Bg4 {[%clk 0:02:59]} 10. Bf3 {[%clk 0:02:20]}  Bxf3 {[%clk 0:02:58]} 11. Qxf3 {[%clk 0:02:21]}  Nc6 {[%clk 0:02:59]} 12. Nf4 {[%clk 0:02:15]}  Qd7 {[%clk 0:02:56]} 13. d3 {[%clk 0:02:12]}  Nd4 {[%clk 0:02:53]} 14. Qd1 {[%clk 0:02:10]}  Qc6 {[%clk 0:02:47]} 15. f3 {[%clk 0:02:06]}  d5 {[%clk 0:02:41]} 16. Be3 {[%clk 0:02:05]}  Bc5 {[%clk 0:02:38]} 17. Bf2 {[%clk 0:02:03]}  Re7 {[%clk 0:02:12]} 18. Nce2 {[%clk 0:01:56]}  Nxf3+ {[%clk 0:02:11]} 19. Kh1 {[%clk 0:01:44]}  d4 {[%clk 0:01:59]} 20. Ng2 {[%clk 0:01:44]}  Rae8 {[%clk 0:01:53]} 21. Ng1 {[%clk 0:01:30]}  Ng5 {[%clk 0:01:46]} 22. Qd2 {[%clk 0:01:21]}  h6 {[%clk 0:01:42]} 23. Rae1 {[%clk 0:01:17]}  Ng4 {[%clk 0:01:42]} 24. h4 {[%clk 0:01:10]}  Nf3 {[%clk 0:01:32]} 25. Nxf3 {[%clk 0:01:05]}  Qxf3 {[%clk 0:01:31]} 26. Rxe7 {[%clk 0:00:44]}  Rxe7 {[%clk 0:01:30]} 27. Kg1 {[%clk 0:00:40]}  Ne3 {[%clk 0:01:20]} 28. Ne1 {[%clk 0:00:04]}  Qg4 {[%clk 0:01:03]} 29. Bxe3 {[%clk 0:00:04]}  dxe3 {[%clk 0:01:03]} 30. Qg2 {[%clk 0:00:04]}  e2+ {[%clk 0:01:03]} 31. Rf2 {[%clk 0:00:04]}  Qf5 {[%clk 0:00:55]} 32. c3 {[%clk 0:00:03]}  Be3 {[%clk 0:00:44]} 33. d4 {[%clk 0:00:01]}  Qb1 {[%clk 0:00:42]} 34. Kh2 {[%clk 0:00:01]}  Bxf2 {[%clk 0:00:36]} 35. Qxf2 {[%clk 0:00:02]}  Qe4 {[%clk 0:00:32]} 36. h5 {[%clk 0:00:01]}  b6 {[%clk 0:00:30]} 37. Kg1 {[%clk 0:00:01]}  Qg4 {[%clk 0:00:24]} 38. Kh2 {[%clk 0:00:01]}  Qxh5+ {[%clk 0:00:24]} 39. Kg2 {[%clk 0:00:02]}  Qg4 {[%clk 0:00:24]} 40. Qf3 {[%clk 0:00:02]}  Qe6 {[%clk 0:00:22]} 41. Qa8+ {[%clk 0:00:02]}  Kh7 {[%clk 0:00:22]} 42. Qf3 {[%clk 0:00:03]}  g6 {[%clk 0:00:22]} 43. Kf2 {[%clk 0:00:03]}  c5 {[%clk 0:00:21]} 44. d5 {[%clk 0:00:03]}  Qe5 {[%clk 0:00:20]} 45. c4 {[%clk 0:00:03]}  f5 {[%clk 0:00:20]} 46. Qd3 {[%clk 0:00:03]}  Qe4 {[%clk 0:00:20]} 47. Qd2 {[%clk 0:00:02]}  Qd4+ {[%clk 0:00:19]} 48. Qxd4 {[%clk 0:00:02]}  cxd4 {[%clk 0:00:19]} 49. Nd3 {[%clk 0:00:03]}  Re3 {[%clk 0:00:19]} 50. Ne1 {[%clk 0:00:02]}  Re4 {[%clk 0:00:18]} 51. b4 {[%clk 0:00:02]}  Kg7 {[%clk 0:00:18]} 52. d6 {[%clk 0:00:02]}  Kf7 {[%clk 0:00:18]} 53. c5 {[%clk 0:00:02]}  bxc5 {[%clk 0:00:18]} 54. bxc5 {[%clk 0:00:03]}  Ke6 {[%clk 0:00:18]} 55. a4 {[%clk 0:00:03]}  Kd7 {[%clk 0:00:18]} 56. Nd3 {[%clk 0:00:03]}  Kc6 {[%clk 0:00:18]} 57. a5 {[%clk 0:00:03]}  a6 {[%clk 0:00:18]} 58. Nb4+ {[%clk 0:00:03]}  Kxc5 {[%clk 0:00:15]} 59. Nd3+ {[%clk 0:00:03]}  Kxd6 {[%clk 0:00:15]} 60. Ke1 {[%clk 0:00:03]}  Kd5 {[%clk 0:00:14]} 61. Nf2 {[%clk 0:00:03]}  Kc4 {[%clk 0:00:14]} 62. g4 {[%clk 0:00:02]}  Kc3 {[%clk 0:00:13]} 63. gxf5 {[%clk 0:00:02]}  gxf5 {[%clk 0:00:14]} 64. Nxe4+ {[%clk 0:00:01]}  fxe4 {[%clk 0:00:14]} 65. Kf2 {[%clk 0:00:01]}  Kc2 {[%clk 0:00:14]} 66. Ke1 {[%clk 0:00:02]}  d3 {[%clk 0:00:13]} 67. Kf2 {[%clk 0:00:02]}  d2 {[%clk 0:00:14]} 68. Kxe2 {[%clk 0:00:02]}  d1=Q+ {[%clk 0:00:14]} 69. Ke3 {[%clk 0:00:03]}  Qd2+ {[%clk 0:00:14]} 70. Kxe4 {[%clk 0:00:03]}  Qxa5 {[%clk 0:00:14]} 71. Kd4 {[%clk 0:00:03]}  Qb5 {[%clk 0:00:14]} 72. Ke4 {[%clk 0:00:03]}  a5 {[%clk 0:00:15]} 73. Kf3 {[%clk 0:00:04]}  a4 {[%clk 0:00:16]} 74. Kg2 {[%clk 0:00:05]}  a3 {[%clk 0:00:17]} 75. Kh1 {[%clk 0:00:05]}  a2 {[%clk 0:00:17]} 76. Kg2 {[%clk 0:00:05]}  a1=Q {[%clk 0:00:17]} 77. Kh3 {[%clk 0:00:06]}  Qc3+ {[%clk 0:00:17]} 78. Kg4 {[%clk 0:00:06]}  Qd4+ {[%clk 0:00:17]} 79. Kf3 {[%clk 0:00:06]}  Qbd3+ {[%clk 0:00:17]} 80. Kg2 {[%clk 0:00:06]}  Qe2+ {[%clk 0:00:17]} 81. Kh1 {[%clk 0:00:06]}  Qdd1# {[%clk 0:00:16]} 0-1


[Site "https://www.chess.com"]

[Event "Titled Tuesday Blitz April 19 Late 2022"]
[White "Onslow, Alfie"]
[Black "Spata, German"]
[WhiteFideId "436976"]
[BlackFideId "113026"]
[WhiteElo "1884"]
[BlackElo "2238"]
[Result "0-1"]
[Round "03"]
[TimeControl "180+1"]
[Date "2022.04.19"]
[WhiteClock "0:00:10"]
[BlackClock "0:00:04"]

1. e4 {[%clk 0:03:00]}  d6 {[%clk 0:02:58]} 2. d4 {[%clk 0:02:57]}  g6 {[%clk 0:02:57]} 3. h4 {[%clk 0:02:55]}  h6 {[%clk 0:02:57]} 4. h5 {[%clk 0:02:55]}  g5 {[%clk 0:02:57]} 5. Nc3 {[%clk 0:02:54]}  Bg7 {[%clk 0:02:57]} 6. Be3 {[%clk 0:02:54]}  c6 {[%clk 0:02:56]} 7. Qd2 {[%clk 0:02:53]}  e5 {[%clk 0:02:55]} 8. Nge2 {[%clk 0:02:52]}  Qc7 {[%clk 0:02:52]} 9. O-O-O {[%clk 0:02:51]}  Nf6 {[%clk 0:02:49]} 10. f3 {[%clk 0:02:51]}  Na6 {[%clk 0:02:47]} 11. Kb1 {[%clk 0:02:46]}  b5 {[%clk 0:02:42]} 12. Bxg5 {[%clk 0:02:45]}  hxg5 {[%clk 0:02:42]} 13. Qxg5 {[%clk 0:02:46]}  Rh7 {[%clk 0:02:16]} 14. h6 {[%clk 0:02:33]}  Bh8 {[%clk 0:02:16]} 15. dxe5 {[%clk 0:02:32]}  dxe5 {[%clk 0:02:15]} 16. Ng3 {[%clk 0:02:28]}  Qe7 {[%clk 0:01:10]} 17. Nh5 {[%clk 0:02:13]}  Kf8 {[%clk 0:01:10]} 18. Ng7 {[%clk 0:01:29]}  Be6 {[%clk 0:00:51]} 19. f4 {[%clk 0:01:25]}  exf4 {[%clk 0:00:31]} 20. Be2 {[%clk 0:01:18]}  Bxg7 {[%clk 0:00:28]} 21. hxg7+ {[%clk 0:01:17]}  Rxg7 {[%clk 0:00:29]} 22. Rh8+ {[%clk 0:01:17]}  Ng8 {[%clk 0:00:25]} 23. Qh6 {[%clk 0:01:05]}  Qg5 {[%clk 0:00:20]} 24. Qh1 {[%clk 0:00:31]}  Nc5 {[%clk 0:00:19]} 25. Bf3 {[%clk 0:00:26]}  Rd8 {[%clk 0:00:15]} 26. Re1 {[%clk 0:00:20]}  Qe5 {[%clk 0:00:13]} 27. Qh6 {[%clk 0:00:18]}  Qg5 {[%clk 0:00:07]} 28. Qh2 {[%clk 0:00:16]}  Qg3 {[%clk 0:00:06]} 29. Qh1 {[%clk 0:00:17]}  b4 {[%clk 0:00:05]} 30. Ne2 {[%clk 0:00:15]}  Qg5 {[%clk 0:00:04]} 31. Qh2 {[%clk 0:00:14]}  Na4 {[%clk 0:00:04]} 32. Nxf4 {[%clk 0:00:12]}  Qf6 {[%clk 0:00:04]} 33. Rh1 {[%clk 0:00:10]}  Qxb2# {[%clk 0:00:04]} 0-1


[Site "https://www.chess.com"]

[Event "Titled Tuesday Blitz April 19 Late 2022"]
[White "Oparin, Grigoriy"]
[Black "Mekhitarian, Krikor Sevag"]
[WhiteFideId "24125890"]
[BlackFideId "2107660"]
[WhiteElo "2665"]
[BlackElo "2598"]
[Result "1-0"]
[Round "03"]
[TimeControl "180+1"]
[Date "2022.04.19"]
[WhiteClock "0:01:10"]
[BlackClock "0:00:18"]

1. d4 {[%clk 0:03:00]}  Nf6 {[%clk 0:02:59]} 2. c4 {[%clk 0:03:01]}  g6 {[%clk 0:02:59]} 3. Nf3 {[%clk 0:03:01]}  Bg7 {[%clk 0:02:59]} 4. Nc3 {[%clk 0:03:01]}  d5 {[%clk 0:02:59]} 5. cxd5 {[%clk 0:03:01]}  Nxd5 {[%clk 0:02:58]} 6. g3 {[%clk 0:03:01]}  O-O {[%clk 0:02:52]} 7. Bg2 {[%clk 0:03:01]}  c5 {[%clk 0:02:39]} 8. O-O {[%clk 0:03:01]}  cxd4 {[%clk 0:02:35]} 9. Nxd5 {[%clk 0:02:57]}  Qxd5 {[%clk 0:02:34]} 10. Be3 {[%clk 0:02:57]}  Nc6 {[%clk 0:02:22]} 11. Nxd4 {[%clk 0:02:56]}  Qa5 {[%clk 0:02:22]} 12. Nxc6 {[%clk 0:02:50]}  bxc6 {[%clk 0:02:23]} 13. Qc2 {[%clk 0:02:29]}  Bf5 {[%clk 0:02:16]} 14. Qxc6 {[%clk 0:02:27]}  Bxb2 {[%clk 0:02:05]} 15. Rad1 {[%clk 0:02:25]}  Rac8 {[%clk 0:01:59]} 16. Qb7 {[%clk 0:02:22]}  Bf6 {[%clk 0:01:25]} 17. Qxa7 {[%clk 0:02:17]}  Qxa7 {[%clk 0:01:25]} 18. Bxa7 {[%clk 0:02:18]}  Rc2 {[%clk 0:01:25]} 19. a3 {[%clk 0:02:14]}  Rxe2 {[%clk 0:01:19]} 20. Rfe1 {[%clk 0:02:15]}  Ra2 {[%clk 0:01:13]} 21. Bc5 {[%clk 0:02:14]}  Rc8 {[%clk 0:01:13]} 22. Bb4 {[%clk 0:02:11]}  e6 {[%clk 0:00:53]} 23. Rd2 {[%clk 0:01:43]}  Rxd2 {[%clk 0:00:40]} 24. Bxd2 {[%clk 0:01:44]}  Rc2 {[%clk 0:00:39]} 25. Be3 {[%clk 0:01:44]}  Ra2 {[%clk 0:00:37]} 26. Bc5 {[%clk 0:01:44]}  Bb2 {[%clk 0:00:34]} 27. Rd1 {[%clk 0:01:28]}  Bxa3 {[%clk 0:00:26]} 28. Rd8+ {[%clk 0:01:28]}  Kg7 {[%clk 0:00:26]} 29. Bd4+ {[%clk 0:01:29]}  Kh6 {[%clk 0:00:26]} 30. Rg8 {[%clk 0:01:14]}  Bb2 {[%clk 0:00:17]} 31. Be3+ {[%clk 0:01:14]}  Kh5 {[%clk 0:00:18]} 32. h3 {[%clk 0:01:10]} 1-0


[Site "https://www.chess.com"]

[Event "Titled Tuesday Blitz April 19 Late 2022"]
[White "Paravyan, David"]
[Black "Aldokhin, Ivan"]
[WhiteFideId "4194985"]
[BlackFideId "24115720"]
[WhiteElo "2569"]
[BlackElo "2231"]
[Result "1-0"]
[Round "03"]
[TimeControl "180+1"]
[Date "2022.04.19"]
[WhiteClock "0:00:21"]
[BlackClock "0:00:01"]

1. e4 {[%clk 0:02:57]}  c5 {[%clk 0:02:59]} 2. Nf3 {[%clk 0:02:57]}  e6 {[%clk 0:03:00]} 3. d4 {[%clk 0:02:58]}  cxd4 {[%clk 0:03:00]} 4. Nxd4 {[%clk 0:02:59]}  Nc6 {[%clk 0:03:01]} 5. Nc3 {[%clk 0:02:58]}  Qc7 {[%clk 0:03:01]} 6. Be3 {[%clk 0:02:57]}  a6 {[%clk 0:03:01]} 7. Qf3 {[%clk 0:02:57]}  Nf6 {[%clk 0:03:01]} 8. O-O-O {[%clk 0:02:57]}  Bb4 {[%clk 0:02:59]} 9. Nxc6 {[%clk 0:02:53]}  bxc6 {[%clk 0:02:53]} 10. Bd4 {[%clk 0:02:48]}  Be7 {[%clk 0:02:24]} 11. e5 {[%clk 0:02:41]}  Nd5 {[%clk 0:02:23]} 12. Ne4 {[%clk 0:02:41]}  c5 {[%clk 0:01:56]} 13. Nd6+ {[%clk 0:02:41]}  Bxd6 {[%clk 0:01:55]} 14. exd6 {[%clk 0:02:42]}  Qxd6 {[%clk 0:01:42]} 15. Bxg7 {[%clk 0:02:42]}  Rg8 {[%clk 0:01:42]} 16. Bh6 {[%clk 0:02:35]}  Qc6 {[%clk 0:01:12]} 17. Bd3 {[%clk 0:02:10]}  c4 {[%clk 0:00:57]} 18. Be4 {[%clk 0:02:09]}  Bb7 {[%clk 0:00:41]} 19. Bxd5 {[%clk 0:02:09]}  exd5 {[%clk 0:00:41]} 20. Rhe1+ {[%clk 0:02:08]}  Kd8 {[%clk 0:00:40]} 21. Be3 {[%clk 0:01:59]}  Qg6 {[%clk 0:00:36]} 22. Bd4 {[%clk 0:01:57]}  a5 {[%clk 0:00:28]} 23. g3 {[%clk 0:01:50]}  Ra6 {[%clk 0:00:27]} 24. Qf4 {[%clk 0:01:46]}  Kc8 {[%clk 0:00:26]} 25. Re7 {[%clk 0:01:42]}  Re6 {[%clk 0:00:13]} 26. Re1 {[%clk 0:01:27]}  Qg5 {[%clk 0:00:07]} 27. Qxg5 {[%clk 0:00:55]}  Rxg5 {[%clk 0:00:06]} 28. Kd2 {[%clk 0:00:56]}  Rf5 {[%clk 0:00:05]} 29. Re8+ {[%clk 0:00:43]}  Kc7 {[%clk 0:00:05]} 30. Rh8 {[%clk 0:00:39]}  h5 {[%clk 0:00:04]} 31. f4 {[%clk 0:00:36]}  Bc6 {[%clk 0:00:03]} 32. Re5 {[%clk 0:00:30]}  Rexe5 {[%clk 0:00:02]} 33. Bxe5+ {[%clk 0:00:30]}  d6 {[%clk 0:00:03]} 34. Bd4 {[%clk 0:00:30]}  a4 {[%clk 0:00:03]} 35. a3 {[%clk 0:00:30]}  Kd7 {[%clk 0:00:04]} 36. Rh6 {[%clk 0:00:30]}  Ke7 {[%clk 0:00:03]} 37. Kc3 {[%clk 0:00:27]}  Bd7 {[%clk 0:00:03]} 38. Kd2 {[%clk 0:00:22]}  Be8 {[%clk 0:00:03]} 39. Ke3 {[%clk 0:00:21]}  f6 {[%clk 0:00:02]} 40. h3 {[%clk 0:00:20]}  Ke6 {[%clk 0:00:01]} 41. g4 {[%clk 0:00:20]}  hxg4 {[%clk 0:00:01]} 42. hxg4 {[%clk 0:00:21]} 1-0


[Site "https://www.chess.com"]

[Event "Titled Tuesday Blitz April 19 Late 2022"]
[White "Petrovic, Aleksa"]
[Black "Goncalves, Ivan Mesquita V"]
[WhiteFideId "967629"]
[BlackFideId "2114224"]
[WhiteElo "2198"]
[BlackElo "2299"]
[Result "0-1"]
[Round "03"]
[TimeControl "180+1"]
[Date "2022.04.19"]
[WhiteClock "0:00:01"]
[BlackClock "0:00:14"]

1. d4 {[%clk 0:02:54]}  Nf6 {[%clk 0:02:57]} 2. c4 {[%clk 0:02:53]}  e6 {[%clk 0:02:53]} 3. Nf3 {[%clk 0:02:53]}  Bb4+ {[%clk 0:02:53]} 4. Bd2 {[%clk 0:02:52]}  a5 {[%clk 0:02:53]} 5. g3 {[%clk 0:02:51]}  O-O {[%clk 0:02:52]} 6. Bg2 {[%clk 0:02:51]}  d6 {[%clk 0:02:53]} 7. O-O {[%clk 0:02:50]}  Bxd2 {[%clk 0:02:51]} 8. Qxd2 {[%clk 0:02:49]}  Qe7 {[%clk 0:02:48]} 9. Nc3 {[%clk 0:02:35]}  c6 {[%clk 0:02:46]} 10. e4 {[%clk 0:02:30]}  e5 {[%clk 0:02:45]} 11. Rad1 {[%clk 0:02:22]}  Bg4 {[%clk 0:02:41]} 12. h3 {[%clk 0:02:15]}  Bh5 {[%clk 0:02:23]} 13. dxe5 {[%clk 0:01:58]}  dxe5 {[%clk 0:02:24]} 14. Qd6 {[%clk 0:01:58]}  Qxd6 {[%clk 0:02:23]} 15. Rxd6 {[%clk 0:01:59]}  Bxf3 {[%clk 0:02:22]} 16. Bxf3 {[%clk 0:02:00]}  Na6 {[%clk 0:02:13]} 17. Na4 {[%clk 0:01:55]}  Nb4 {[%clk 0:01:53]} 18. a3 {[%clk 0:01:26]}  Nc2 {[%clk 0:01:51]} 19. Bg2 {[%clk 0:01:11]}  Rfd8 {[%clk 0:01:47]} 20. Rfd1 {[%clk 0:01:05]}  Nd4 {[%clk 0:01:45]} 21. Rxd8+ {[%clk 0:01:03]}  Rxd8 {[%clk 0:01:46]} 22. Kh2 {[%clk 0:01:00]}  Nd7 {[%clk 0:01:21]} 23. f4 {[%clk 0:00:54]}  f6 {[%clk 0:01:22]} 24. h4 {[%clk 0:00:50]}  Kf7 {[%clk 0:01:16]} 25. Nc3 {[%clk 0:00:40]}  Nc5 {[%clk 0:01:12]} 26. b4 {[%clk 0:00:38]}  Ncb3 {[%clk 0:01:01]} 27. c5 {[%clk 0:00:26]}  axb4 {[%clk 0:00:50]} 28. axb4 {[%clk 0:00:27]}  Ra8 {[%clk 0:00:47]} 29. Bf1 {[%clk 0:00:25]}  Ra3 {[%clk 0:00:43]} 30. Bc4+ {[%clk 0:00:26]}  Ke7 {[%clk 0:00:43]} 31. fxe5 {[%clk 0:00:24]}  Nf3+ {[%clk 0:00:37]} 32. Kg2 {[%clk 0:00:24]}  Nxe5 {[%clk 0:00:36]} 33. Be2 {[%clk 0:00:06]}  Nxc5 {[%clk 0:00:29]} 34. bxc5 {[%clk 0:00:06]}  Rxc3 {[%clk 0:00:29]} 35. Rb1 {[%clk 0:00:07]}  Rxc5 {[%clk 0:00:18]} 36. Rxb7+ {[%clk 0:00:08]}  Kf8 {[%clk 0:00:18]} 37. Rb8+ {[%clk 0:00:07]}  Kf7 {[%clk 0:00:18]} 38. Rb7+ {[%clk 0:00:08]}  Kg6 {[%clk 0:00:18]} 39. Kh3 {[%clk 0:00:06]}  h5 {[%clk 0:00:18]} 40. Rc7 {[%clk 0:00:05]}  Rc2 {[%clk 0:00:18]} 41. Bd1 {[%clk 0:00:03]}  Rd2 {[%clk 0:00:16]} 42. Bb3 {[%clk 0:00:03]}  Ng4 {[%clk 0:00:14]} 43. Bf7+ {[%clk 0:00:03]}  Kh6 {[%clk 0:00:14]} 44. Bxh5 {[%clk 0:00:03]}  Kxh5 {[%clk 0:00:15]} 45. Rxg7 {[%clk 0:00:01]}  Rh2# {[%clk 0:00:14]} 0-1


[Site "https://www.chess.com"]

[Event "Titled Tuesday Blitz April 19 Late 2022"]
[White "Petrovskyi, Vadym"]
[Black "Iskusnyh, Sergei"]
[WhiteFideId "14165210"]
[BlackFideId "4120027"]
[WhiteElo "2400"]
[BlackElo "2492"]
[Result "1-0"]
[Round "03"]
[TimeControl "180+1"]
[Date "2022.04.19"]
[WhiteClock "0:02:05"]
[BlackClock "0:00:57"]

1. e4 {[%clk 0:03:00]}  e6 {[%clk 0:02:59]} 2. d4 {[%clk 0:02:59]}  d5 {[%clk 0:02:59]} 3. Nc3 {[%clk 0:02:59]}  Nf6 {[%clk 0:02:58]} 4. e5 {[%clk 0:02:59]}  Nfd7 {[%clk 0:02:58]} 5. f4 {[%clk 0:03:00]}  c5 {[%clk 0:02:56]} 6. Nf3 {[%clk 0:03:01]}  Be7 {[%clk 0:02:55]} 7. Be3 {[%clk 0:03:00]}  O-O {[%clk 0:02:54]} 8. Be2 {[%clk 0:03:00]}  a6 {[%clk 0:02:42]} 9. Qd2 {[%clk 0:02:57]}  b5 {[%clk 0:02:39]} 10. O-O {[%clk 0:02:56]}  Nc6 {[%clk 0:02:37]} 11. Nd1 {[%clk 0:02:55]}  b4 {[%clk 0:02:35]} 12. c3 {[%clk 0:02:52]}  a5 {[%clk 0:02:33]} 13. g4 {[%clk 0:02:51]}  Ba6 {[%clk 0:02:20]} 14. Bxa6 {[%clk 0:02:51]}  Rxa6 {[%clk 0:02:20]} 15. f5 {[%clk 0:02:51]}  bxc3 {[%clk 0:01:34]} 16. bxc3 {[%clk 0:02:52]}  Nb6 {[%clk 0:01:31]} 17. Nb2 {[%clk 0:02:40]}  a4 {[%clk 0:01:20]} 18. dxc5 {[%clk 0:02:40]}  Nd7 {[%clk 0:01:16]} 19. Nd3 {[%clk 0:02:39]}  Qa5 {[%clk 0:01:13]} 20. Kh1 {[%clk 0:02:11]}  Nxc5 {[%clk 0:01:11]} 21. Bxc5 {[%clk 0:02:08]}  Bxc5 {[%clk 0:01:10]} 22. f6 {[%clk 0:02:08]}  d4 {[%clk 0:00:57]} 23. Qg5 {[%clk 0:02:05]} 1-0


[Site "https://www.chess.com"]

[Event "Titled Tuesday Blitz April 19 Late 2022"]
[White "Przybylski, Wojciech"]
[Black "Kosteniuk, Alexandra"]
[WhiteFideId "1117599"]
[BlackFideId "4128125"]
[WhiteElo "2133"]
[BlackElo "2469"]
[Result "0-1"]
[Round "03"]
[TimeControl "180+1"]
[Date "2022.04.19"]
[WhiteClock "0:00:04"]
[BlackClock "0:01:07"]

1. d4 {[%clk 0:03:00]}  Nf6 {[%clk 0:02:59]} 2. Nd2 {[%clk 0:02:59]}  d5 {[%clk 0:02:58]} 3. Ngf3 {[%clk 0:02:58]}  g6 {[%clk 0:02:58]} 4. c3 {[%clk 0:02:54]}  Bg7 {[%clk 0:02:58]} 5. g3 {[%clk 0:02:54]}  c5 {[%clk 0:02:56]} 6. Bg2 {[%clk 0:02:54]}  cxd4 {[%clk 0:02:56]} 7. cxd4 {[%clk 0:02:54]}  Nc6 {[%clk 0:02:56]} 8. O-O {[%clk 0:02:53]}  O-O {[%clk 0:02:56]} 9. Nb3 {[%clk 0:02:52]}  Bf5 {[%clk 0:02:54]} 10. a3 {[%clk 0:02:50]}  Rc8 {[%clk 0:02:53]} 11. Bd2 {[%clk 0:02:49]}  Ne4 {[%clk 0:02:51]} 12. Rc1 {[%clk 0:02:48]}  Qb6 {[%clk 0:02:46]} 13. Bc3 {[%clk 0:02:43]}  h6 {[%clk 0:02:40]} 14. e3 {[%clk 0:02:41]}  Rfd8 {[%clk 0:02:32]} 15. Nfd2 {[%clk 0:02:35]}  Nxc3 {[%clk 0:02:28]} 16. Rxc3 {[%clk 0:02:34]}  e5 {[%clk 0:02:27]} 17. Nf3 {[%clk 0:02:25]}  Be4 {[%clk 0:02:24]} 18. Nbd2 {[%clk 0:02:05]}  exd4 {[%clk 0:02:18]} 19. Rb3 {[%clk 0:02:03]}  Qa6 {[%clk 0:02:11]} 20. exd4 {[%clk 0:01:28]}  Bd3 {[%clk 0:02:11]} 21. Re1 {[%clk 0:01:22]}  Nxd4 {[%clk 0:02:01]} 22. Nxd4 {[%clk 0:01:14]}  Bxd4 {[%clk 0:02:00]} 23. Bf1 {[%clk 0:01:05]}  Bxf1 {[%clk 0:01:57]} 24. Nxf1 {[%clk 0:01:04]}  Bf6 {[%clk 0:01:54]} 25. Qd2 {[%clk 0:00:56]}  h5 {[%clk 0:01:50]} 26. Rd1 {[%clk 0:00:49]}  d4 {[%clk 0:01:50]} 27. h4 {[%clk 0:00:42]}  Bg7 {[%clk 0:01:49]} 28. Qf4 {[%clk 0:00:20]}  b6 {[%clk 0:01:45]} 29. Rf3 {[%clk 0:00:14]}  Qc4 {[%clk 0:01:43]} 30. Nd2 {[%clk 0:00:14]}  Qe6 {[%clk 0:01:39]} 31. Ne4 {[%clk 0:00:11]}  Rd7 {[%clk 0:01:28]} 32. Ng5 {[%clk 0:00:11]}  Qg4 {[%clk 0:01:26]} 33. Qxg4 {[%clk 0:00:04]}  hxg4 {[%clk 0:01:26]} 34. Rfd3 {[%clk 0:00:03]}  Rc2 {[%clk 0:01:24]} 35. R3d2 {[%clk 0:00:03]}  Rxd2 {[%clk 0:01:20]} 36. Rxd2 {[%clk 0:00:04]}  f5 {[%clk 0:01:18]} 37. Ne6 {[%clk 0:00:02]}  Bf6 {[%clk 0:01:17]} 38. Nf4 {[%clk 0:00:02]}  Kf7 {[%clk 0:01:17]} 39. Kf1 {[%clk 0:00:02]}  g5 {[%clk 0:01:16]} 40. hxg5 {[%clk 0:00:01]}  Bxg5 {[%clk 0:01:17]} 41. Rc2 {[%clk 0:00:01]}  d3 {[%clk 0:01:15]} 42. Rd2 {[%clk 0:00:01]}  Bxf4 {[%clk 0:01:15]} 43. gxf4 {[%clk 0:00:02]}  Rd4 {[%clk 0:01:15]} 44. Rd1 {[%clk 0:00:02]}  Ke6 {[%clk 0:01:10]} 45. Ke1 {[%clk 0:00:03]}  Kd5 {[%clk 0:01:09]} 46. Kd2 {[%clk 0:00:03]}  Ke4 {[%clk 0:01:10]} 47. Re1+ {[%clk 0:00:03]}  Kxf4 {[%clk 0:01:10]} 48. Kc3 {[%clk 0:00:03]}  Rd7 {[%clk 0:01:09]} 49. Kd2 {[%clk 0:00:03]}  Kf3 {[%clk 0:01:09]} 50. Re5 {[%clk 0:00:03]}  f4 {[%clk 0:01:09]} 51. Rf5 {[%clk 0:00:04]}  Rd4 {[%clk 0:01:07]} 52. Rg5 {[%clk 0:00:04]}  g3 {[%clk 0:01:06]} 53. fxg3 {[%clk 0:00:04]}  fxg3 {[%clk 0:01:07]} 54. Rf5+ {[%clk 0:00:04]}  Rf4 {[%clk 0:01:07]} 0-1


[Site "https://www.chess.com"]